bitfinex/quotes_ETHUSD_20220215
["timestamp","ask_amount","ask_price","bid_price","bid_amount"]
[1644952571718,5.5833469,3113.9,3113.8,0.00257738]
[1644952571921,6.5833469,3113.9,3113.8,0.00257738]
[1644952572320,6.5833469,3113.9,3113.2,0.8030081]
[1644952572520,6.5833469,3113.9,3113.3,0.00448639]
[1644952572521,0.86426718,3113.4,3113.3,0.00448639]
[1644952572721,4.12742044,3113.4,3113.2,0.0103113]
[1644952572920,3.36752336,3113.3,3113.2,0.0103113]
[1644952573120,4.37882336,3113.3,3113.2,0.0103113]
[1644952573719,4.37882336,3113.3,3112.9,0.00448639]
[1644952573720,6.48208296,3113.3,3112.9,0.00448639]
[1644952573921,6.72308296,3113.3,3113.1,0.00257777]
[1644952574119,5.22193069,3113.2,3113.1,0.00257777]
[1644952574722,5.22193069,3113.2,3111.9,7.28]
[1644952574723,25.69,3113.1,3111.7,1.5]
[1644952574923,25.69,3113.1,3111.7,0.5]
[1644952574924,18.89,3112.7,3111.7,0.5]
[1644952575273,18.89,3112.7,3111.0,0.463]
[1644952575274,0.80357,3112.2,3110.9,1.0]
[1644952575573,2.36207,3112.2,3110.8,1.01785328]
[1644952575780,1.12813446,3111.2,3110.8,1.01785328]
[1644952575972,4.389,3111.9,3110.9,0.8035313]
[1644952576174,4.389,3111.9,3110.8,1.82304573]
[1644952576175,1.1887,3111.9,3110.8,1.82304573]
[1644952576372,1.0,3112.1,3110.9,1.0]
[1644952576574,1.2312,3112.1,3110.9,4.35147601]
[1644952576875,1.2312,3112.1,3110.9,4.41985981]
[1644952577273,1.2312,3112.1,3111.4,0.80339]
[1644952577473,4.268,3112.2,3111.4,0.80339]
[1644952577474,3.51751,3112.2,3111.4,0.80339]
[1644952577678,2.7141,3112.2,3111.2,7.28]
[1644952577977,0.80343,3112.1,3110.9,1.0]
[1644952578274,0.94895649,3111.6,3111.0,1.0]
[1644952578477,0.94895649,3111.6,3110.9,3.15118164]
[1644952578679,1.60708,3112.0,3111.3,0.00284597]
[1644952579118,0.8035,3111.9,3111.3,0.00284597]
[1644952579621,0.8035,3111.9,3110.9,3.15118164]
[1644952579817,0.8035,3111.9,3111.4,0.00284591]
[1644952580820,0.8035,3111.9,3111.0,0.8034818]
[1644952581019,0.80352,3111.8,3111.5,0.00284588]
[1644952582019,0.80352,3111.8,3111.0,1.8034818]
[1644952582222,0.80352,3111.8,3111.5,0.00284588]
[1644952583086,0.80352,3111.8,3111.0,0.8034818]
[1644952583287,1.60703,3111.8,3111.0,0.8034818]
[1644952583488,1.60703,3111.8,3111.5,0.00284588]
[1644952583888,1.93287431,3112.0,3111.5,0.00284588]
[1644952584291,1.93287431,3112.0,3111.2,0.8034531]
[1644952584490,2.73633431,3112.0,3110.9,1.85118164]
[1644952584690,0.92851732,3111.7,3111.6,0.00284582]
[1644952585591,0.92851732,3111.7,3110.9,1.85118164]
[1644952585791,0.92851732,3111.7,3111.5,0.00284588]
[1644952585991,0.80351,3111.9,3111.5,0.00284588]
[1644952586393,1.2341,3112.1,3111.5,0.00284588]
[1644952586622,2.7141,3112.2,3111.5,0.00284588]
[1644952586821,1.65217394,3112.6,3111.5,0.00284588]
[1644952586822,1.22503394,3112.6,3111.5,0.8033698]
[1644952587021,2.02834394,3112.6,3112.0,1.05580736]
[1644952587226,0.84874394,3112.6,3112.0,1.05580736]
[1644952587819,0.80331,3112.5,3112.0,1.05080736]
[1644952588120,0.80331,3112.5,3112.1,0.00284547]
[1644952589219,0.80331,3112.5,3111.8,0.8032863]
[1644952589419,0.84874394,3112.6,3112.1,0.00284547]
[1644952589420,0.04543394,3112.6,3112.1,0.00284547]
[1644952590268,0.04543394,3112.6,3111.7,0.00444363]
[1644952590466,0.8033,3112.5,3111.9,1.07753259]
[1644952590668,0.8033,3112.5,3112.2,0.00284544]
[1644952590867,1.7656,3112.8,3112.2,0.00284544]
[1644952590868,1.2156,3112.8,3112.2,0.00284544]
[1644952591076,4.8198,3113.4,3112.3,0.463]
[1644952591277,4.8198,3113.4,3112.4,0.00444363]
[1644952591471,4.8198,3113.4,3112.5,1.463]
[1644952591668,4.8198,3113.4,3112.6,1.00444363]
[1644952591870,4.8198,3113.4,3113.1,1.06204336]
[1644952592068,0.8031,3113.4,3113.2,0.00444363]
[1644952592471,1.1456,3113.7,3113.2,0.00444363]
[1644952592678,0.00284405,3113.9,3113.2,0.00444363]
[1644952592869,4.6515,3114.1,3113.2,0.00444363]
[1644952593070,0.00284418,3113.9,3113.2,0.00444363]
[1644952593871,0.80297,3113.9,3113.2,0.00444363]
[1644952594320,0.3,3113.8,3113.2,0.00444363]
[1644952594926,0.3,3113.8,3113.2,0.80738393]
[1644952595126,3.23792221,3114.0,3113.3,0.00444363]
[1644952595327,2.23792221,3114.0,3113.2,0.78939879]
[1644952595525,0.00284424,3113.9,3113.2,0.78939879]
[1644952596226,0.80582424,3113.9,3113.2,0.78939879]
[1644952596426,0.80582424,3113.9,3113.1,1.06204336]
[1644952596427,0.3,3113.8,3113.1,1.06204336]
[1644952596826,2.10586425,3113.9,3113.1,1.06204336]
[1644952597026,0.80586425,3113.9,3113.1,1.06204336]
[1644952597625,0.80301,3113.8,3113.1,1.06204336]
[1644952597870,1.60602,3113.8,3113.1,1.06204336]
[1644952598168,7.60309,3113.6,3112.4,0.00284554]
[1644952598370,18.89,3113.2,3112.4,0.00284554]
[1644952598568,0.80327,3113.2,3112.4,0.00284554]
[1644952598768,0.80327,3113.2,3111.9,0.4992556]
[1644952598769,1.3,3113.1,3112.0,0.31097751]
[1644952598967,0.80337,3113.0,3111.7,1.7154556]
[1644952599169,0.98408419,3112.6,3112.4,0.00194834]
[1644952599367,1.0,3113.0,3112.4,0.00194834]
[1644952599569,2.327,3113.2,3112.4,0.00194834]
[1644952599768,0.80316,3113.1,3112.4,0.00194834]
[1644952599969,1.864,3113.2,3112.1,0.81022518]
[1644952600169,1.864,3113.2,3112.4,0.00284848]
[1644952600374,5.1019764,3113.2,3112.4,0.00284848]
[1644952600667,6.29341674,3113.2,3112.6,0.94127928]
[1644952600869,1.99458034,3113.2,3112.6,0.94127928]
[1644952601170,5.23964662,3113.2,3112.6,0.94127928]
[1644952601368,5.23697693,3113.2,3112.6,0.94127928]
[1644952601627,2.79774034,3113.2,3112.6,0.94127928]
[1644952601826,2.79774034,3113.2,3112.4,0.00284851]
[1644952601827,3.32001239,3113.1,3112.4,0.00284851]
[1644952602024,0.80323,3113.0,3112.4,0.00284851]
[1644952602223,3.37977308,3112.9,3112.4,0.00284851]
[1644952602423,3.21288242,3112.9,3112.1,0.4992556]
[1644952602624,3.37839715,3113.1,3112.4,0.00284845]
[1644952602825,3.67839715,3113.1,3112.4,0.00284845]
[1644952603524,0.80322,3112.9,3112.2,1.73366999]
[1644952603724,3.37839715,3113.1,3112.2,1.73366999]
[1644952603925,4.41650007,3113.2,3112.4,0.00284847]
[1644952604727,0.80317,3113.1,3112.3,0.31135347]
[1644952604927,1.60635,3113.1,3112.3,0.31135347]
[1644952605129,1.60635,3113.1,3112.4,0.00284848]
[1644952605566,1.60635,3113.1,3112.4,0.80600488]
[1644952605567,3.24010683,3113.0,3112.4,0.80600488]
[1644952605770,4.04329683,3113.0,3112.4,0.80600488]
[1644952605969,4.04329683,3113.0,3112.2,0.93047429]
[1644952606166,0.80322,3112.9,3112.4,0.00194834]
[1644952606969,1.60643,3112.9,3112.4,0.00194834]
[1644952607174,1.60643,3112.9,3112.3,0.31175548]
[1644952607571,1.60643,3112.9,3112.4,0.00194834]
[1644952607771,0.86251438,3112.7,3112.4,0.00194834]
[1644952608377,0.86251438,3112.7,3111.7,1.7451556]
[1644952608378,3.26882326,3112.6,3111.7,1.7451556]
[1644952608573,3.24593373,3112.6,3112.4,0.0028516]
[1644952608772,1.66581438,3112.7,3112.4,0.0028516]
[1644952609024,0.86251438,3112.7,3112.4,0.0028516]
[1644952609421,3.23697604,3112.6,3112.4,0.0028516]
[1644952609626,3.23697604,3112.6,3112.0,0.31177465]
[1644952609829,0.80338,3112.5,3112.4,0.0028516]
[1644952610824,0.80338,3112.5,3111.8,0.31181112]
[1644952610825,0.80338,3112.4,3111.8,0.31181112]
[1644952611127,0.80338,3112.4,3112.3,0.00285166]
[1644952611528,1.66582438,3112.7,3112.3,0.00285166]
[1644952611725,0.86251438,3112.7,3112.3,0.00285166]
[1644952611926,0.80329,3112.6,3112.3,0.31621059]
[1644952612128,3.99684439,3112.6,3111.8,0.80770437]
[1644952612427,3.99684439,3112.6,3112.3,0.00285163]
[1644952612428,0.80333,3112.5,3112.3,0.00285163]
[1644952613275,4.05064629,3112.4,3112.2,0.30943392]
[1644952613476,6.21006,3112.4,3112.2,0.00285169]
[1644952613778,6.21006,3112.4,3112.2,0.00725116]
[1644952613779,5.263,3112.3,3112.2,0.00725116]
[1644952613978,1.763,3112.3,3112.2,0.00285169]
[1644952614374,1.763,3112.3,3111.1,0.00439947]
[1644952614575,0.8035,3112.0,3111.1,0.00439947]
[1644952614776,0.8035,3112.0,3111.6,0.01140886]
[1644952615575,0.8035,3112.0,3110.9,0.00439947]
[1644952615775,0.8035,3112.0,3111.6,0.00279859]
[1644952615776,1.14877422,3111.7,3111.6,0.00279859]
[1644952616175,4.43571028,3111.7,3111.6,0.00279859]
[1644952616820,1.14877422,3111.7,3111.1,0.00439947]
[1644952617018,0.80351,3111.6,3111.5,0.00260319]
[1644952617419,4.04694457,3111.9,3111.5,0.00260319]
[1644952618023,4.04694457,3111.9,3111.2,0.00439947]
[1644952618221,4.04694457,3111.9,3111.5,0.00260316]
[1644952618421,4.91653027,3111.9,3111.5,0.00260316]
[1644952618620,0.80348,3111.8,3111.5,0.00260316]
[1644952618822,0.80351,3111.7,3111.5,0.00260316]
[1644952619024,3.178837,3111.6,3111.5,0.00260316]
[1644952619222,3.178837,3111.6,3111.2,0.00439947]
[1644952619223,0.3,3111.6,3111.2,0.00439947]
[1644952619422,0.3,3111.6,3111.4,0.00239407]
[1644952619621,0.463,3111.5,3111.4,0.00239407]
[1644952619822,23.153,3111.5,3111.4,0.00239407]
[1644952620024,23.153,3111.5,3111.4,1e-08]
[1644952620025,20.45676,3111.5,3111.4,1e-08]
[1644952620279,21.45676,3111.5,3111.4,1e-08]
[1644952620480,20.49755,3111.4,3110.8,0.01785328]
[1644952620979,1.6,3111.3,3110.8,0.01785328]
[1644952621385,0.91364415,3110.9,3110.8,0.01785328]
[1644952621583,0.91364415,3110.9,3110.7,4.864e-05]
[1644952621584,27.26549,3110.8,3110.7,4.864e-05]
[1644952621779,28.02849,3110.8,3110.7,4.864e-05]
[1644952622179,29.02849,3110.8,3110.7,4.864e-05]
[1644952622378,29.02849,3110.8,3110.1,0.00766784]
[1644952622379,0.8039538,3110.7,3110.1,0.00766784]
[1644952622580,1.8645288,3110.4,3110.1,0.00766784]
[1644952622781,0.80394,3110.4,3110.1,0.00766784]
[1644952623080,0.80394,3110.4,3110.2,0.00269375]
[1644952623281,0.763,3110.6,3110.2,0.00269375]
[1644952623680,0.80389,3110.4,3110.2,0.00269375]
[1644952623880,3.18649732,3110.3,3110.2,0.00269375]
[1644952624124,3.18649732,3110.3,3110.1,0.00766784]
[1644952624125,3.18405627,3110.3,3110.1,0.00766784]
[1644952624325,3.18405627,3110.3,3110.1,0.01036165]
[1644952624519,3.22458506,3110.3,3110.1,0.01036165]
[1644952625118,3.22458506,3110.3,3110.1,0.00766784]
[1644952625119,0.80395,3110.2,3110.1,0.00766784]
[1644952625721,0.3,3110.2,3110.1,0.00766784]
[1644952625921,3.96017839,3110.2,3110.1,0.00766784]
[1644952626320,4.76410839,3110.2,3110.1,0.00766784]
[1644952626520,5.76410839,3110.2,3110.1,0.00766784]
[1644952626725,3.96017839,3110.2,3110.1,0.00766784]
[1644952627120,0.3,3110.2,3110.1,0.00766784]
[1644952627321,3.19114614,3110.2,3110.1,0.00766784]
[1644952627520,3.21581632,3110.2,3110.1,0.00766784]
[1644952627768,3.45504385,3110.5,3110.1,0.00766784]
[1644952627970,3.91804385,3110.5,3110.1,0.00766784]
[1644952628175,1.207,3110.7,3110.1,0.00766784]
[1644952628573,5.1499154,3110.8,3110.1,0.00766784]
[1644952628871,1.937,3110.8,3110.3,1.06471203]
[1644952629072,1.34706097,3110.9,3110.3,1.06471203]
[1644952629573,5.61696851,3110.8,3110.3,1.06471203]
[1644952629774,4.30939851,3110.8,3110.3,1.06471203]
[1644952629973,1.60762,3111.0,3110.3,1.06471203]
[1644952630177,3.0133,3111.2,3110.4,0.00268709]
[1644952630474,3.0133,3111.2,3110.6,0.4992556]
[1644952630475,2.7633,3111.2,3110.6,0.4992556]
[1644952630674,1.9859,3111.3,3110.7,0.8035255]
[1644952630872,7.8184,3111.7,3111.3,0.87661829]
[1644952631073,3.5,3111.8,3111.3,0.87661829]
[1644952631527,0.3,3111.8,3111.3,0.87661829]
[1644952631722,4.1,3112.0,3111.3,0.87661829]
[1644952631928,0.80352,3111.9,3111.3,0.87661829]
[1644952632123,1.8649,3112.3,3111.7,1.08841796]
[1644952632322,1.20823394,3112.4,3111.7,1.08841796]
[1644952632523,0.04543394,3112.4,3111.7,1.08841796]
[1644952632922,0.80349,3112.2,3111.3,0.87661829]
[1644952633122,4.00486474,3112.2,3111.3,0.87661829]
[1644952633623,1.0,3112.1,3111.3,0.87661829]
[1644952633825,0.96140787,3111.9,3111.3,0.87661829]
[1644952634022,4.00226678,3111.8,3111.3,0.87661829]
[1644952634222,0.80353,3111.8,3111.3,0.87661829]
[1644952634622,0.96140787,3111.9,3111.3,0.87661829]
[1644952634824,0.3,3111.9,3111.3,0.87661829]
[1644952635122,3.40181069,3112.2,3111.4,0.29869894]
[1644952635123,1.10343,3112.2,3111.4,0.29869894]
[1644952635369,1.0,3112.1,3111.3,0.87661829]
[1644952635570,1.40343,3112.2,3111.3,0.87661829]
[1644952635769,3.23731776,3112.1,3111.3,0.87661829]
[1644952635970,1.60686,3112.2,3111.3,0.87661829]
[1644952636773,1.60686,3112.2,3111.7,0.89881366]
[1644952636978,0.04543394,3112.4,3111.8,0.00435576]
[1644952638577,3.70789,3112.7,3111.8,0.78135576]
[1644952638773,3.70789,3112.7,3111.9,0.29880011]
[1644952639028,2.9046,3112.7,3111.9,0.29880011]
[1644952639826,3.24757575,3112.6,3112.2,0.90574747]
[1644952640025,2.9046,3112.7,3112.2,0.90574747]
[1644952640227,0.80331,3112.6,3111.8,0.00435576]
[1644952640425,0.80331,3112.6,3111.5,0.09712179]
[1644952640626,0.80331,3112.6,3111.6,0.2988902]
[1644952640826,0.80331,3112.6,3111.7,0.00435576]
[1644952641024,0.80331,3112.6,3111.8,0.2988902]
[1644952641425,1.60671,3112.8,3112.2,1.15754699]
[1644952641630,23.70982,3113.6,3112.2,1.15754699]
[1644952641631,0.25,3113.5,3112.3,3.46975308]
[1644952641828,1.05128818,3114.0,3112.6,5.0]
[1644952642028,3.2934,3114.5,3112.9,5.0]
[1644952642331,4.39148,3115.0,3112.7,4.01190411]
[1644952642332,0.60480077,3114.8,3113.4,0.4992556]
[1644952642525,0.60480077,3114.8,3114.2,1.14269154]
[1644952642781,1.12818574,3115.0,3113.4,2.1047395]
[1644952642782,0.60480077,3114.7,3113.4,2.1047395]
[1644952642979,3.23731028,3115.0,3113.4,2.4047395]
[1644952642980,0.60480077,3114.6,3113.4,2.4047395]
[1644952643182,0.60480077,3114.5,3113.3,0.4992556]
[1644952643379,0.60480077,3114.4,3113.3,0.4992556]
[1644952643579,1.6853061,3114.9,3113.3,0.8029131]
[1644952643580,19.49480077,3114.6,3113.3,0.8029131]
[1644952643780,1.89905458,3114.5,3113.4,1.46708988]
[1644952643980,0.60480077,3114.6,3113.4,1.46708988]
[1644952644380,0.60480077,3114.5,3113.4,1.46708988]
[1644952644580,0.60480077,3114.5,3113.1,3.85873097]
[1644952644786,19.19,3114.4,3113.1,0.4992556]
[1644952644984,20.18425381,3114.3,3113.0,2.1050609]
[1644952645181,20.18425381,3114.2,3113.0,0.4992556]
[1644952645380,1.29425381,3114.1,3112.7,1.4992556]
[1644952645580,1.59425381,3114.1,3112.7,1.4992556]
[1644952645781,1.59425381,3114.1,3112.9,0.99730367]
[1644952645980,1.59425381,3114.1,3113.0,3.37361708]
[1644952645981,0.00247307,3113.8,3113.0,3.37361708]
[1644952646381,0.00247307,3113.8,3113.1,1.0]
[1644952646629,0.00247307,3113.8,3113.0,4.38269632]
[1644952646823,1.25,3114.6,3113.1,1.4992556]
[1644952647022,0.00266262,3113.6,3113.5,1.1788092]
[1644952647424,0.00266262,3113.6,3113.1,0.95]
[1644952647825,0.00266262,3113.6,3113.0,1.10294]
[1644952648024,0.60480077,3114.5,3113.0,1.10294]
[1644952648224,1.40777077,3114.5,3113.0,1.10294]
[1644952648425,0.00266258,3113.6,3113.0,1.10294]
[1644952648827,0.00266258,3113.6,3113.2,0.802993]
[1644952649226,2.84103587,3114.5,3113.3,1.14240153]
[1644952649427,0.00266262,3113.6,3113.3,1.14240153]
[1644952650136,0.00266262,3113.6,3113.4,0.8029352]
[1644952650369,1.03806587,3114.5,3113.4,0.8029352]
[1644952650773,0.00242431,3113.6,3113.4,0.8029352]
[1644952650972,0.00242431,3113.6,3113.3,0.7228413]
[1644952651370,0.00242431,3113.6,3113.3,1.7228413]
[1644952651573,2.30404587,3114.5,3113.3,0.7228413]
[1644952651972,0.00242431,3113.6,3113.2,1.9058244]
[1644952652171,0.00242431,3113.6,3113.2,0.3]
[1644952652371,0.00242431,3113.6,3113.0,1.4992556]
[1644952652372,0.00242431,3113.6,3113.0,0.7992556]
[1644952652570,0.00242431,3113.6,3113.0,0.4992556]
[1644952652776,2.25562672,3114.4,3113.0,0.7992556]
[1644952652972,1.17125153,3114.0,3113.2,1.11478971]
[1644952653175,0.00242423,3113.6,3113.2,1.11478971]
[1644952653372,0.00242423,3113.6,3113.2,1.41478971]
[1644952654018,0.80304,3114.4,3113.2,1.41478971]
[1644952654220,0.00247768,3113.6,3113.2,1.41478971]
[1644952654822,0.00247768,3113.6,3113.2,1.91404531]
[1644952655019,0.00247768,3113.6,3113.3,3.39547413]
[1644952655222,0.25,3114.6,3113.4,3.4048804]
[1644952655424,1.75700077,3114.8,3113.5,3.87402962]
[1644952655425,0.00247768,3113.6,3113.5,3.87402962]
[1644952655621,0.00247768,3113.6,3113.5,4.953834]
[1644952655820,0.00247768,3113.6,3113.5,5.953834]
[1644952656020,0.00247768,3113.6,3113.5,2.6020756]
[1644952656222,0.00247768,3113.6,3113.5,4.2077485]
[1644952656434,0.25,3114.6,3113.5,7.61359117]
[1644952656621,1.0,3115.0,3113.5,7.61359117]
[1644952656622,1.0,3115.0,3113.5,7.11077117]
[1644952656821,0.00247768,3113.7,3113.6,1.0]
[1644952657022,0.00247768,3113.7,3113.6,6.50929289]
[1644952657225,1e-08,3113.7,3113.6,5.88177614]
[1644952657423,1e-08,3113.7,3113.6,7.48721614]
[1644952657621,3.1687,3115.6,3113.6,7.48721614]
[1644952657870,3.1687,3115.6,3114.5,0.80258]
[1644952658075,1.2422,3115.6,3114.5,0.80258]
[1644952658471,1.16320207,3115.5,3114.6,0.89959341]
[1644952659170,1.16320207,3115.5,3114.7,0.8025784]
[1644952660070,1.0,3115.6,3114.8,0.3]
[1644952660272,3.06514687,3116.6,3114.9,0.8025402]
[1644952660273,0.25406082,3116.3,3114.9,0.8025402]
[1644952660474,0.00406082,3116.3,3115.0,3.5]
[1644952660683,0.00406082,3116.3,3115.1,0.3]
[1644952660872,0.00406082,3116.3,3115.1,1.3]
[1644952661072,0.00406082,3116.3,3115.4,1.0]
[1644952661272,0.00406082,3116.3,3115.1,1.3]
[1644952661273,0.92619429,3116.2,3115.1,2.3]
[1644952661529,0.00090661,3115.9,3115.1,2.3]
[1644952661727,0.5,3115.3,3115.0,0.3]
[1644952661926,0.5,3115.3,3115.1,1.6048404]
[1644952662126,0.00090661,3115.9,3115.1,1.9048404]
[1644952662327,0.00090661,3115.9,3115.1,3.9048404]
[1644952662527,0.00406082,3116.2,3115.1,3.9048404]
[1644952662727,0.00090661,3115.4,3115.1,3.9048404]
[1644952662928,0.00090661,3115.4,3115.1,4.9927248]
[1644952663128,0.00090661,3115.4,3115.1,3.9048404]
[1644952663729,0.86729722,3115.9,3115.1,3.9048404]
[1644952663929,0.00090661,3115.4,3115.1,3.9048404]
[1644952664330,0.00090661,3115.4,3115.2,1.08978962]
[1644952664731,0.00090661,3115.4,3115.2,2.08978962]
[1644952664933,0.86729722,3115.9,3115.2,1.0]
[1644952665268,0.00285184,3115.5,3115.2,1.0]
[1644952666068,0.86729722,3115.9,3115.2,1.0]
[1644952666269,0.86729722,3115.9,3115.4,0.8024324]
[1644952666471,0.00285181,3115.5,3115.4,0.8024324]
[1644952666870,0.00285181,3115.5,3115.1,1.0]
[1644952667076,0.00285181,3115.5,3115.0,1.0]
[1644952667370,4.15942028,3115.6,3114.4,1.0]
[1644952667574,0.00285184,3115.5,3114.3,1.0]
[1644952667772,1.02283958,3115.4,3114.6,1.00535641]
[1644952667971,3.39031881,3115.3,3114.6,1.00535641]
[1644952668171,3.39031881,3115.3,3114.7,0.8026281]
[1644952668375,1.02283958,3115.4,3114.7,0.8026281]
[1644952668572,3.26231971,3115.3,3114.7,0.8026281]
[1644952668773,0.00285203,3115.2,3114.7,0.8026281]
[1644952669222,0.00285203,3115.2,3114.7,1.1026281]
[1644952669417,0.00285203,3115.2,3114.7,0.8026281]
[1644952669619,0.00285203,3115.2,3114.8,0.80252]
[1644952669818,3.88418297,3115.8,3114.8,0.80252]
[1644952670019,0.00285206,3115.1,3114.8,0.80252]
[1644952670520,0.00285206,3115.1,3114.8,0.8025119]
[1644952670921,0.96940409,3115.5,3114.8,0.8025119]
[1644952671323,0.00285206,3115.1,3114.8,0.8025119]
[1644952672122,0.96940409,3115.5,3115.0,0.8025217]
[1644952672322,0.39993226,3114.8,3114.7,1.9050237]
[1644952672521,0.39993226,3114.8,3114.7,0.3]
[1644952672771,0.39993226,3114.8,3114.6,5.50333432]
[1644952672972,0.39993226,3114.8,3114.7,1.0]
[1644952673271,0.39993226,3114.8,3114.7,1.80252]
[1644952673773,0.39993226,3114.8,3114.7,3.4075615]
[1644952674373,0.39993226,3114.8,3114.7,2.4075615]
[1644952674772,0.39993226,3114.8,3114.7,3.4075615]
[1644952674973,0.39993226,3114.8,3114.7,4.4075615]
[1644952675173,0.39993226,3114.8,3114.7,4.0075615]
[1644952675474,0.39993226,3114.8,3114.7,4.7075615]
[1644952676723,0.39993226,3114.8,3114.7,5.0075615]
[1644952677522,0.39993226,3114.8,3114.7,3.7075615]
[1644952677921,0.39993226,3114.8,3114.7,4.7075615]
[1644952679125,0.39993226,3114.8,3114.7,5.0075615]
[1644952679523,0.39993226,3114.8,3114.7,4.7075615]
[1644952681075,0.39993226,3114.8,3114.7,2.9050415]
[1644952681275,0.39993226,3114.8,3114.7,1.6050415]
[1644952681482,0.39993226,3114.8,3114.7,1.9050415]
[1644952686729,0.39993226,3114.8,3114.7,1.6050415]
[1644952688175,0.00284993,3114.9,3114.7,1.6050415]
[1644952688382,0.00284993,3114.9,3114.8,1.15790128]
[1644952688573,0.00284993,3114.9,3114.8,2.92090128]
[1644952688773,0.00284993,3114.9,3114.8,3.92090128]
[1644952688976,0.00406082,3115.6,3115.0,0.80234]
[1644952689179,0.00406082,3115.6,3115.5,0.87841237]
[1644952689374,0.00406082,3115.7,3115.5,2.48309367]
[1644952689575,0.00406082,3115.8,3115.5,1.6046813]
[1644952689777,0.99567458,3115.7,3115.5,0.8023313]
[1644952691728,0.00682474,3115.8,3115.5,0.8023313]
[1644952691924,0.9965679,3115.7,3115.5,2.4070513]
[1644952692325,0.9965679,3115.7,3115.5,0.94832939]
[1644952692725,0.00406082,3115.8,3115.5,0.94832939]
[1644952692726,0.00682474,3115.8,3115.5,0.94832939]
[1644952693333,0.00682474,3115.8,3115.6,1.18518078]
[1644952693532,25.0,3115.9,3115.7,1.3828008]
[1644952693533,18.30534008,3115.9,3115.7,1.3828008]
[1644952693730,1.77803466,3115.9,3115.8,0.8458008]
[1644952694027,1.77803466,3115.9,3115.8,3.02284387]
[1644952694230,2.7225,3117.2,3115.9,6.8]
[1644952694431,0.81487073,3117.7,3116.2,5.0]
[1644952694432,0.96971336,3117.1,3116.2,5.0]
[1644952694730,3.1228,3117.7,3116.8,1.0]
[1644952694927,0.96989596,3117.6,3117.0,1.0]
[1644952695272,0.96989596,3117.6,3117.1,1.0]
[1644952695472,0.96989596,3117.5,3117.2,1.60378]
[1644952695676,0.96989596,3117.4,3117.2,1.60378]
[1644952695873,4.25330077,3117.9,3117.2,1.60378]
[1644952695874,0.96989596,3117.3,3117.2,1.60378]
[1644952696175,0.96989596,3117.8,3117.2,1.60378]
[1644952696374,0.96989596,3117.8,3117.3,0.8018864]
[1644952696577,0.00260745,3117.5,3117.3,2.4056064]
[1644952697074,0.00260745,3117.5,3117.3,4.0092042]
[1644952697473,0.96989596,3117.8,3117.4,1.6035077]
[1644952697674,0.00260739,3117.6,3117.5,1.10176]
[1644952698074,0.00260739,3117.6,3117.5,2.10176]
[1644952698474,0.96989596,3117.8,3117.5,0.80176]
[1644952698881,0.00258936,3117.7,3117.5,0.80176]
[1644952699144,0.92975759,3117.8,3117.5,0.80176]
[1644952699350,0.92975759,3117.8,3117.4,5.8095877]
[1644952699543,0.8022,3118.0,3117.4,5.8095877]
[1644952700445,0.8022,3118.0,3117.7,0.80174]
[1644952700646,0.8022,3118.0,3117.7,1.60347]
[1644952700845,0.8022,3118.0,3117.6,0.80177]
[1644952701046,0.8022,3118.0,3117.4,1.0]
[1644952701248,0.80309777,3118.0,3117.4,1.0]
[1644952701851,1.02620501,3117.7,3117.4,1.0]
[1644952702045,1.02620501,3117.7,3117.0,1.0]
[1644952702246,1.02620501,3117.7,3116.8,1.0]
[1644952702645,0.00284578,3117.9,3116.8,1.0]
[1644952702873,0.00284578,3117.9,3116.8,1.3]
[1644952703272,0.00284578,3117.9,3116.8,2.3]
[1644952703477,1.40700077,3118.0,3116.8,2.3]
[1644952703673,0.00284573,3117.9,3116.8,2.3]
[1644952703874,1.12445488,3117.6,3116.7,1.0]
[1644952704275,1.12445488,3117.6,3116.4,0.09276603]
[1644952704875,1.12445488,3117.6,3116.6,1.0]
[1644952704876,1.13583823,3117.6,3116.6,1.0]
[1644952705076,1.13583823,3117.6,3116.6,1.8020247]
[1644952705077,1.8873,3117.5,3116.6,1.8020247]
[1644952705277,1.13583823,3117.6,3116.6,1.8020247]
[1644952705778,1.12445488,3117.6,3116.6,1.8020247]
[1644952705977,1.12445488,3117.6,3116.6,2.6040447]
[1644952706377,1.2481831,3117.7,3116.6,2.6040447]
[1644952706624,1.2481831,3117.7,3116.6,3.7060347]
[1644952706824,1.2481831,3117.7,3116.8,0.8019785]
[1644952707025,1.8796,3117.9,3116.8,0.8019785]
[1644952707222,0.01138298,3117.8,3116.8,0.8019785]
[1644952707421,0.01138298,3117.8,3116.6,2.90401]
[1644952707422,0.01138298,3117.8,3116.7,1.3]
[1644952707622,0.01138298,3117.8,3116.8,2.10192]
[1644952707823,0.01138298,3117.8,3116.9,1.0]
[1644952708222,1.8796,3117.9,3116.9,1.0]
[1644952708423,1.88244573,3117.9,3116.9,1.80192]
[1644952709024,0.00404052,3117.8,3116.9,1.80192]
[1644952709825,0.00404052,3117.8,3117.0,1.6038515]
[1644952710025,0.00404052,3117.8,3117.0,2.4057515]
[1644952710771,0.00404052,3117.8,3116.9,1.0]
[1644952710772,0.80611052,3117.8,3116.9,1.0]
[1644952710972,0.80611052,3117.8,3116.8,0.3]
[1644952711175,0.80611052,3117.8,3116.7,1.6]
[1644952711571,1.06181298,3117.6,3116.7,1.6]
[1644952711771,0.00404052,3117.5,3116.7,1.6]
[1644952712176,0.00404052,3117.5,3116.7,3.4020034]
[1644952712371,0.00404052,3117.7,3116.7,2.24388746]
[1644952712571,0.01826895,3117.9,3116.7,2.24388746]
[1644952712772,0.01826895,3117.9,3116.7,1.3]
[1644952712972,0.00404052,3117.9,3116.8,1.60374]
[1644952713172,0.00404052,3117.9,3117.2,0.80186]
[1644952713371,0.01826883,3117.9,3117.2,0.80186]
[1644952713571,0.01826883,3117.9,3117.0,0.8018699]
[1644952714226,0.00404052,3117.9,3117.2,1.0]
[1644952714427,0.00688628,3117.9,3117.2,1.0]
[1644952714626,0.00688628,3117.9,3117.0,2.6037899]
[1644952715027,0.00688628,3117.9,3117.0,1.8018699]
[1644952715327,0.00404052,3117.9,3117.0,1.8018699]
[1644952715827,0.00688628,3117.9,3117.0,1.8018699]
[1644952716528,0.00688628,3117.9,3117.2,0.8019402]
[1644952716727,0.00404052,3117.9,3117.2,0.8019402]
[1644952716928,0.00688628,3117.9,3117.2,0.8019402]
[1644952717772,0.00404052,3117.9,3117.2,0.8019402]
[1644952718072,0.0068863,3117.9,3117.2,0.8019402]
[1644952718974,0.00404052,3117.9,3117.3,0.8019074]
[1644952719173,0.9366702,3117.8,3117.3,0.8019074]